Workbook

Sheet Ex 6-4
B1: Complément au cours "Caractéristiques électriques des postes de distribution HT/MT", module 2
B2: Calcul de l'écart de tension max entre phases MT (3E Ing., J.P. Laflamme, ing. 2015-03-09) | S2: Impédance source MT
D3: R1 | F3: X1 | S3: Z | T3: R1 | U3: X1 | V3: R0 | W3: X0 | AK3: Validation d'erreur
C4: Impédance source HT : | D4: 0.0032 | F4: 0.0112 | G4: p.u. (100 MVA) | L4: Tension source HT : | M4: 315 | N4: kV | S4: HT | T4: =D4*S5 -> 0.0233817262 | U4: =F4*S5 -> 0.08183604168 | X4: Ω | Z4: Validation d'erreur | AA4: =IF(ISERR(AB4),TRUE,OR(AB4,AC4,Erreur2)) -> FALSE | AB4: =OR(AK4:AV19) -> FALSE | AC4: =OR(ISERR(T13),ISERR(V13),ISERR(AB4)) -> FALSE | AD4: FALSE | AK4: =D4<0 -> FALSE | AM4: =F4<0 -> FALSE | AT4: =M4<=0 -> FALSE
B5: Tension nominale des transfos | D5: HT | F5: MT | S5: =M4^2/100*(F6/U6)^2 -> 7.306789436
D6: 310 | F6: 26.4 | G6: kV | L6: Prise de régulation : | M6: 9.405 | T6: =-(M6-9)/8*0.15 -> -0.00759375 | U6: =(1+T6)*D6 -> 307.6459375 | V6: =(1-0.7717*T6+1.4798*T6^2)*D8 -> 24.04209577 | AK6: =OR(D6<0.8*M4,D6>1.2*M4) -> FALSE | AM6: =OR(F6<0.8*D13,F6>1.3*D13) -> FALSE | AT6: =OR(M6<1,M6>17) -> FALSE
D7: Z | F7: X/R | H7: Puissance | M7: Z | O7: X/R | S7: Transfos | T7: Puissance | V7: MALT | AA7: G1 | AB7: B1 | AD7: G0 | AE7: B0
B8: Impédance transfos de puissance YNd | C8: 1 | D8: 23.9 | E8: % | F8: 55 | H8: 66 | I8: MVA | J8: Impédance transfos de MALT | L8: 1 | M8: 4.3 | N8: Ω | O8: 15 | S8: =IF(ISBLANK(D8),"",$V$6/100*$F$6^2/H8) -> 2.538845313 | T8: =IF(ISBLANK(D8),"",S8*1/SQRT(1+F8^2)) -> 0.04615319588 | U8: =IF(ISBLANK(D8),"",S8*F8/SQRT(1+F8^2)) -> 2.538425773 | V8: =IF(ISBLANK(M8),"",M8*1/SQRT(1+O8^2)) -> 0.2860317453 | W8: =IF(ISBLANK(M8),"",M8*O8/SQRT(1+O8^2)) -> 4.290476179 | X8: Ω | Z8: =T8^2+U8^2 -> 6.445735524 | AA8: =IF(ISBLANK($D8),0,T8/Z8) -> 0.007160268321 | AB8: =IF(ISBLANK($D8),0,-U8/Z8) -> -0.3938147577 | AC8: =V8^2+W8^2 -> 18.49 | AD8: =IF(ISBLANK($M8),0,V8/AC8) -> 0.01546953733 | AE8: =IF(ISBLANK($M8),0,-W8/AC8) -> -0.23204306 | AF8: S | AK8: =D8<0 -> FALSE | AM8: =F8<0 -> FALSE | AO8: =H8<0 -> FALSE | AT8: =M8<0 -> FALSE | AV8: =O8<0 -> FALSE
C9: 2 | E9: % | I9: MVA | L9: 2 | N9: Ω | S9: =IF(ISBLANK(D9),"",$V$6/100*$F$6^2/H9) ->  | T9: =IF(ISBLANK(D9),"",S9*1/SQRT(1+F9^2)) ->  | U9: =IF(ISBLANK(D9),"",S9*F9/SQRT(1+F9^2)) ->  | V9: =IF(ISBLANK(M9),"",M9*1/SQRT(1+O9^2)) ->  | W9: =IF(ISBLANK(M9),"",M9*O9/SQRT(1+O9^2)) ->  | X9: Ω | Z9: =T9^2+U9^2 ->  | AA9: =IF(ISBLANK($D9),0,T9/Z9) -> 0 | AB9: =IF(ISBLANK($D9),0,-U9/Z9) -> 0 | AC9: =V9^2+W9^2 ->  | AD9: =IF(ISBLANK($M9),0,V9/AC9) -> 0 | AE9: =IF(ISBLANK($M9),0,-W9/AC9) -> 0 | AF9: S | AK9: =D9<0 -> FALSE | AM9: =F9<0 -> FALSE | AO9: =H9<0 -> FALSE | AT9: =M9<0 -> FALSE | AV9: =O9<0 -> FALSE
C10: 3 | E10: % | I10: MVA | L10: 3 | N10: Ω | T10: =IF(ISBLANK(D10),"",S10*1/SQRT(1+F10^2)) ->  | U10: =IF(ISBLANK(D10),"",S10*F10/SQRT(1+F10^2)) ->  | V10: =IF(ISBLANK(M10),"",M10*1/SQRT(1+O10^2)) ->  | W10: =IF(ISBLANK(M10),"",M10*O10/SQRT(1+O10^2)) ->  | X10: Ω | Z10: =T10^2+U10^2 ->  | AA10: =IF(ISBLANK($D10),0,T10/Z10) -> 0 | AB10: =IF(ISBLANK($D10),0,-U10/Z10) -> 0 | AC10: =V10^2+W10^2 ->  | AD10: =IF(ISBLANK($M10),0,V10/AC10) -> 0 | AE10: =IF(ISBLANK($M10),0,-W10/AC10) -> 0 | AF10: S | AK10: =D10<0 -> FALSE | AM10: =F10<0 -> FALSE | AO10: =H10<0 -> FALSE | AT10: =M10<0 -> FALSE | AV10: =O10<0 -> FALSE
C11: 4 | E11: % | I11: MVA | L11: 4 | N11: Ω | T11: =IF(ISBLANK(D11),"",S11*1/SQRT(1+F11^2)) ->  | U11: =IF(ISBLANK(D11),"",S11*F11/SQRT(1+F11^2)) ->  | V11: =IF(ISBLANK(M11),"",M11*1/SQRT(1+O11^2)) ->  | W11: =IF(ISBLANK(M11),"",M11*O11/SQRT(1+O11^2)) ->  | X11: Ω | Z11: =T11^2+U11^2 ->  | AA11: =IF(ISBLANK($D11),0,T11/Z11) -> 0 | AB11: =IF(ISBLANK($D11),0,-U11/Z11) -> 0 | AC11: =V11^2+W11^2 ->  | AD11: =IF(ISBLANK($M11),0,V11/AC11) -> 0 | AE11: =IF(ISBLANK($M11),0,-W11/AC11) -> 0 | AF11: S | AK11: =D11<0 -> FALSE | AM11: =F11<0 -> FALSE | AO11: =H11<0 -> FALSE | AT11: =M11<0 -> FALSE | AV11: =O11<0 -> FALSE
C13: Tension nom. MT ph-ph : | D13: 24.94 | E13: kV | S13: Z Total : | T13: =AA13/Z13+T4 -> 0.06953492207 | U13: =-AB13/Z13+U4 -> 2.620261815 | V13: =AD13/AC13 -> 0.2860317453 | W13: =-AE13/AC13 -> 4.290476179 | X13: Ω | Z13: =AA13^2+AB13^2 -> 0.1551413328 | AA13: =SUM(AA8:AA11) -> 0.007160268321 | AB13: =SUM(AB8:AB11) -> -0.3938147577 | AC13: =AD13^2+AE13^2 -> 0.05408328826 | AD13: =SUM(AD8:AD11) -> 0.01546953733 | AE13: =SUM(AE8:AE11) -> -0.23204306 | AF13: S | AK13: =D13<=0 -> FALSE
F14: FP | AA14: Nominal | AB14: Source | AC14: Charge
C15: Charge totale : | D15: =66*1.42*0.72 -> 67.4784 | E15: MVA | F15: 98 | G15: % | L15: Tension de la charge : | M15: 123 | N15: V en base 120 V | Z15: V ph-n | AA15: =D13/SQRT(3)*1000 -> 14399.11571 | AB15: =AA15*M4*F6/U6/D13 -> 15606.39766 | AC15: =AA15*M15/120 -> 14759.09361 | AD15: V | AK15: =D15<0 -> FALSE | AM15: =IF(D15=0,TRUE,OR(F15<75,F15>100)) -> FALSE | AR15: =OR(M15<90,M15>150) -> FALSE
F16: Vnom | Z16: P: | AA16: =D15*1000000 -> 67478400 | AB16: W | AC16: FP | AD16: =F15/100 -> 0.98 | AE16: FR | AF16: =SQRT(1-AD16^2) -> 0.1989974874
C17: Condensateurs : | D17: 12 | E17: Mvar | F17: 28.4 | G17: kV | L17: Inductance-série des condensateurs: | M17: 1.2 | N17: Ω | AC17: Idéséq x | AD17: Idéséq y | AK17: =D17<0 -> FALSE | AM17: =IF(D17=0,TRUE,OR(F17<0.75*D13,F17>1.2*D13)) -> FALSE | AT17: =M17<0 -> FALSE
F18: Angle | Z18: Y condens + is | AA18: =IF(OR(ISBLANK(D17),D17=0),0,-1/(M17-F17^2/D17)) -> 0.01514845486 | AB18: Ω | AC18: =D19*COS(F19/180*PI())*3 -> 138.3508055 | AD18: =D19*SIN(F19/180*PI())*3 -> 31.94080021 | AE18: A
C19: Déséquilibre (I0) : | D19: 47.33 | E19: A | F19: 13 | G19: ° | I19: A | J19: B | K19: C | M19: Moy | N19: ΔV | Z19: Fact correction final | AA19: =I20/AA44*AA20 -> 1.031001096 | AB19: =J20/AB44*AB20 -> 1.007216503 | AC19: =K20/AC44*AC20 -> 1.018371619 | AE19: Écart final initial | AF19: =SQRT((AA44-I20)^2+(AB44-J20)^2+(AC44-K20)^2)/M20 -> 2.869806434e-06 | AK19: =D19<0 -> FALSE | AM19: =ISERR(Angle) -> FALSE
H20: Courant : | I20: =IF(Erreur,"",AC18*2/3+M20) -> 1616.229896 | J20: =IF(Erreur,"",-AC18/3-SQRT(3)/3*AD18+M20) -> 1459.438061 | K20: =IF(Erreur,"",-AC18/3+SQRT(3)/3*AD18+M20) -> 1496.32012 | M20: =AA16/3/AC15 -> 1523.996026 | O20: A | Z20: Fact correction initial | AA20: 1.030999907 | AB20: 1.007218314 | AC20: 1.018369603
H21: Tension : | I21: =IF(Erreur,"",AA44*AF25/$AA$15*120) -> 121.4707932 | J21: =IF(Erreur,"",AB44*AG25/$AA$15*120) -> 124.4684878 | K21: =IF(Erreur,"",AC44*AH25/$AA$15*120) -> 123.0710134 | M21: =(I21+J21+K21)/3 -> 123.0034315 | N21: =IF(Erreur,"",MAX(I21:K21)-MIN(I21:K21)) -> 2.997694527 | O21: V (base 120 V) | Z21: Admittance de charge | AA21: A | AB21: B | AC21: C | AE21: Impédance de charge | AF21: A | AG21: B | AH21: C
AA22: =I20/$AC$15*AA20 -> 0.1129021143 | AB22: =J20/$AC$15*AB20 -> 0.09959776544 | AC22: =K20/$AC$15*AC20 -> 0.1032452918 | AD22: S | AF22: =AA23^2+AA24^2 -> 0.01229567524 | AG22: =AB23^2+AB24^2 -> 0.009548714749 | AH22: 0.01026659918
Z23: Gp | AA23: =AA22*$AD$16 -> 0.110644072 | AB23: 0.09760581013 | AC23: 0.101180386 | AD23: S | AE23: Rs | AF23: =AA23/AF22 -> 8.998616981 | AG23: =AB23/AG22 -> 10.22187935 | AH23: 9.855297183 | AI23: Ω
Z24: Bp | AA24: =-AA22*$AF$16+$AA$18 -> -0.007318782206 | AB24: =-AB22*$AF$16+$AA$18 -> -0.004671250217 | AC24: =-AC22*$AF$16+$AA$18 -> -0.005397098798 | AD24: S | AE24: Xs | AF24: =-AA24/AF22 -> 0.5952322312 | AG24: =-AB24/AG22 -> 0.4892019858 | AH24: 0.525694897 | AI24: Ω
AE25: Zs | AF25: =SQRT(AF23^2+AF24^2) -> 9.01828193 | AG25: =SQRT(AG23^2+AG24^2) -> 10.23357885 | AH25: 9.869307863 | AI25: Ω
AA27: Matrice Z
Z28: r | AA28: =Z29+AF23 -> 9.14031751 | AB28: =Z30 -> 0.07216560773 | AC28: =Z30 -> 0.07216560773 | AD28: =-AA31 -> -3.772232167 | AE28: -0.5567381213 | AF28: -0.5567381213
Z29: =(V13+2*T13)/3 -> 0.1417005298 | AA29: =Z30 -> 0.07216560773 | AB29: =Z29+AG23 -> 10.36357988 | AC29: =Z30 -> 0.07216560773 | AD29: -0.5567381213 | AE29: -3.666201922 | AF29: -0.5567381213
Z30: =(V13-T13)/3 -> 0.07216560773 | AA30: =Z30 -> 0.07216560773 | AB30: =Z30 -> 0.07216560773 | AC30: =Z29+AH23 -> 9.996997713 | AD30: -0.5567381213 | AE30: -0.5567381213 | AF30: -3.702694833
Z31: i | AA31: =Z32+AF24 -> 3.772232167 | AB31: =Z33 -> 0.5567381213 | AC31: =Z33 -> 0.5567381213 | AD31: =AA28 -> 9.14031751 | AE31: 0.07216560773 | AF31: 0.07216560773
Z32: =(W13+2*U13)/3 -> 3.176999936 | AA32: =Z33 -> 0.5567381213 | AB32: =Z32+AG24 -> 3.666201922 | AC32: =Z33 -> 0.5567381213 | AD32: 0.07216560773 | AE32: 10.36357988 | AF32: 0.07216560773
Z33: =(W13-U13)/3 -> 0.5567381213 | AA33: =Z33 -> 0.5567381213 | AB33: =Z33 -> 0.5567381213 | AC33: =Z32+AH24 -> 3.702694833 | AD33: 0.07216560773 | AE33: 0.07216560773 | AF33: 9.996997713
AA35: Matrice Y | AH35: Matrice Vs | AJ35: Matrice Is
AA36: =MINVERSE(AA28:AF33) -> 0.09340065946 | AB36: -0.003936404494 | AC36: -0.004107940162 | AD36: 0.03800711129 | AE36: 0.003117636315 | AF36: 0.003163941908 | AH36: =$AB$15 -> 15606.39766 | AJ36: =MMULT(AA36:AF41,AH36:AH41) -> 1521.045299
AA37: -0.003936404494 | AB37: 0.08565310911 | AC37: -0.003538231563 | AD37: 0.003117636315 | AE37: 0.02985633645 | AF37: 0.003002323994 | AH37: =-$AB$15/2 -> -7803.198829 | AJ37: -1065.138205
AA38: -0.004107940162 | AB38: -0.003538231563 | AC38: 0.08786283987 | AD38: 0.003163941908 | AE38: 0.003002323994 | AF38: 0.03207236661 | AG38: ⨯ | AH38: =AH37 -> -7803.198829 | AI38: = | AJ38: -329.2146008
AA39: -0.03800711129 | AB39: -0.003117636315 | AC39: -0.003163941908 | AD39: 0.09340065946 | AE39: -0.003936404494 | AF39: -0.004107940162 | AH39: 0 | AJ39: -546.4560854
AA40: -0.003117636315 | AB40: -0.02985633645 | AC40: -0.003002323994 | AD40: -0.003936404494 | AE40: 0.08565310911 | AF40: -0.003538231563 | AH40: =-SQRT(3)/2*AB15 -> -13515.53683 | AJ40: -997.7212615
AA41: -0.003163941908 | AB41: -0.003002323994 | AC41: -0.03207236661 | AD41: -0.004107940162 | AE41: -0.003538231563 | AF41: 0.08786283987 | AH41: =-AH40 -> 13515.53683 | AJ41: 1459.651597
AA43: A | AB43: B | AC43: C | AD43: N
Z44: I charge calculé | AA44: =SQRT(AJ36^2+AJ39^2) -> 1616.228033 | AB44: =SQRT(AJ37^2+AJ40^2) -> 1459.440684 | AC44: =SQRT(AJ38^2+AJ41^2) -> 1496.317158 | AD44: =SQRT(AA44^2+AB44^2+AC44^2-AA44*AB44-AA44*AC44-AB44*AC44)/3 -> 47.32908724 | AE44: A

Sheet Ex 6-5
B1: Complément au cours "Caractéristiques électriques des postes de distribution HT/MT", module 2
B2: Calcul de l'écart de tension max entre phases MT (3E Ing., J.P. Laflamme, ing. 2015-03-09) | S2: Impédance source MT
D3: R1 | F3: X1 | S3: Z | T3: R1 | U3: X1 | V3: R0 | W3: X0 | AK3: Validation d'erreur
C4: Impédance source HT : | D4: 0.0032 | F4: 0.0112 | G4: p.u. (100 MVA) | L4: Tension source HT : | M4: 315 | N4: kV | S4: HT | T4: =D4*S5 -> 0.0233773092 | U4: =F4*S5 -> 0.0818205822 | X4: Ω | Z4: Validation d'erreur | AA4: =IF(ISERR(AB4),TRUE,OR(AB4,AC4,Erreur2)) -> FALSE | AB4: =OR(AK4:AV19) -> FALSE | AC4: =OR(ISERR(T13),ISERR(V13),ISERR(AB4)) -> FALSE | AD4: FALSE | AK4: =D4<0 -> FALSE | AM4: =F4<0 -> FALSE | AT4: =M4<=0 -> FALSE
B5: Tension nominale des transfos | D5: HT | F5: MT | S5: =M4^2/100*(F6/U6)^2 -> 7.305409125
D6: 310 | F6: 26.4 | G6: kV | L6: Prise de régulation : | M6: 9.4 | T6: =-(M6-9)/8*0.15 -> -0.0075 | U6: =(1+T6)*D6 -> 307.675 | V6: =(1-0.7717*T6+1.4798*T6^2)*D8 -> 24.04031663 | AK6: =OR(D6<0.8*M4,D6>1.2*M4) -> FALSE | AM6: =OR(F6<0.8*D13,F6>1.3*D13) -> FALSE | AT6: =OR(M6<1,M6>17) -> FALSE
D7: Z | F7: X/R | H7: Puissance | M7: Z | O7: X/R | S7: Transfos | T7: Puissance | V7: MALT | AA7: G1 | AB7: B1 | AD7: G0 | AE7: B0
B8: Impédance transfos de puissance YNd | C8: 1 | D8: 23.9 | E8: % | F8: 55 | H8: 66 | I8: MVA | J8: Impédance transfos de MALT | L8: 1 | M8: 6.42 | N8: Ω | O8: 15 | S8: =IF(ISBLANK(D8),"",$V$6/100*$F$6^2/H8) -> 2.538657436 | T8: =IF(ISBLANK(D8),"",S8*1/SQRT(1+F8^2)) -> 0.0461497805 | U8: =IF(ISBLANK(D8),"",S8*F8/SQRT(1+F8^2)) -> 2.538237927 | V8: =IF(ISBLANK(M8),"",M8*1/SQRT(1+O8^2)) -> 0.4270520476 | W8: =IF(ISBLANK(M8),"",M8*O8/SQRT(1+O8^2)) -> 6.405780713 | X8: Ω | Z8: =T8^2+U8^2 -> 6.444781579 | AA8: =IF(ISBLANK($D8),0,T8/Z8) -> 0.007160798227 | AB8: =IF(ISBLANK($D8),0,-U8/Z8) -> -0.3938439025 | AC8: =V8^2+W8^2 -> 41.2164 | AD8: =IF(ISBLANK($M8),0,V8/AC8) -> 0.01036121659 | AE8: =IF(ISBLANK($M8),0,-W8/AC8) -> -0.1554182489 | AF8: S | AK8: =D8<0 -> FALSE | AM8: =F8<0 -> FALSE | AO8: =H8<0 -> FALSE | AT8: =M8<0 -> FALSE | AV8: =O8<0 -> FALSE
C9: 2 | E9: % | I9: MVA | L9: 2 | N9: Ω | S9: =IF(ISBLANK(D9),"",$V$6/100*$F$6^2/H9) ->  | T9: =IF(ISBLANK(D9),"",S9*1/SQRT(1+F9^2)) ->  | U9: =IF(ISBLANK(D9),"",S9*F9/SQRT(1+F9^2)) ->  | V9: =IF(ISBLANK(M9),"",M9*1/SQRT(1+O9^2)) ->  | W9: =IF(ISBLANK(M9),"",M9*O9/SQRT(1+O9^2)) ->  | X9: Ω | Z9: =T9^2+U9^2 ->  | AA9: =IF(ISBLANK($D9),0,T9/Z9) -> 0 | AB9: =IF(ISBLANK($D9),0,-U9/Z9) -> 0 | AC9: =V9^2+W9^2 ->  | AD9: =IF(ISBLANK($M9),0,V9/AC9) -> 0 | AE9: =IF(ISBLANK($M9),0,-W9/AC9) -> 0 | AF9: S | AK9: =D9<0 -> FALSE | AM9: =F9<0 -> FALSE | AO9: =H9<0 -> FALSE | AT9: =M9<0 -> FALSE | AV9: =O9<0 -> FALSE
C10: 3 | E10: % | I10: MVA | L10: 3 | N10: Ω | T10: =IF(ISBLANK(D10),"",S10*1/SQRT(1+F10^2)) ->  | U10: =IF(ISBLANK(D10),"",S10*F10/SQRT(1+F10^2)) ->  | V10: =IF(ISBLANK(M10),"",M10*1/SQRT(1+O10^2)) ->  | W10: =IF(ISBLANK(M10),"",M10*O10/SQRT(1+O10^2)) ->  | X10: Ω | Z10: =T10^2+U10^2 ->  | AA10: =IF(ISBLANK($D10),0,T10/Z10) -> 0 | AB10: =IF(ISBLANK($D10),0,-U10/Z10) -> 0 | AC10: =V10^2+W10^2 ->  | AD10: =IF(ISBLANK($M10),0,V10/AC10) -> 0 | AE10: =IF(ISBLANK($M10),0,-W10/AC10) -> 0 | AF10: S | AK10: =D10<0 -> FALSE | AM10: =F10<0 -> FALSE | AO10: =H10<0 -> FALSE | AT10: =M10<0 -> FALSE | AV10: =O10<0 -> FALSE
C11: 4 | E11: % | I11: MVA | L11: 4 | N11: Ω | T11: =IF(ISBLANK(D11),"",S11*1/SQRT(1+F11^2)) ->  | U11: =IF(ISBLANK(D11),"",S11*F11/SQRT(1+F11^2)) ->  | V11: =IF(ISBLANK(M11),"",M11*1/SQRT(1+O11^2)) ->  | W11: =IF(ISBLANK(M11),"",M11*O11/SQRT(1+O11^2)) ->  | X11: Ω | Z11: =T11^2+U11^2 ->  | AA11: =IF(ISBLANK($D11),0,T11/Z11) -> 0 | AB11: =IF(ISBLANK($D11),0,-U11/Z11) -> 0 | AC11: =V11^2+W11^2 ->  | AD11: =IF(ISBLANK($M11),0,V11/AC11) -> 0 | AE11: =IF(ISBLANK($M11),0,-W11/AC11) -> 0 | AF11: S | AK11: =D11<0 -> FALSE | AM11: =F11<0 -> FALSE | AO11: =H11<0 -> FALSE | AT11: =M11<0 -> FALSE | AV11: =O11<0 -> FALSE
C13: Tension nom. MT ph-ph : | D13: 24.94 | E13: kV | S13: Z Total : | T13: =AA13/Z13+T4 -> 0.0695270897 | U13: =-AB13/Z13+U4 -> 2.62005851 | V13: =AD13/AC13 -> 0.4270520476 | W13: =-AE13/AC13 -> 6.405780713 | X13: Ω | Z13: =AA13^2+AB13^2 -> 0.1551642965 | AA13: =SUM(AA8:AA11) -> 0.007160798227 | AB13: =SUM(AB8:AB11) -> -0.3938439025 | AC13: =AD13^2+AE13^2 -> 0.0242621869 | AD13: =SUM(AD8:AD11) -> 0.01036121659 | AE13: =SUM(AE8:AE11) -> -0.1554182489 | AF13: S | AK13: =D13<=0 -> FALSE
F14: FP | AA14: Nominal | AB14: Source | AC14: Charge
C15: Charge totale : | D15: =66*1.42*0.72 -> 67.4784 | E15: MVA | F15: 98 | G15: % | L15: Tension de la charge : | M15: 123 | N15: V en base 120 V | Z15: V ph-n | AA15: =D13/SQRT(3)*1000 -> 14399.11571 | AB15: =AA15*M4*F6/U6/D13 -> 15604.9235 | AC15: =AA15*M15/120 -> 14759.09361 | AD15: V | AK15: =D15<0 -> FALSE | AM15: =IF(D15=0,TRUE,OR(F15<75,F15>100)) -> FALSE | AR15: =OR(M15<90,M15>150) -> FALSE
F16: Vnom | Z16: P: | AA16: =D15*1000000 -> 67478400 | AB16: W | AC16: FP | AD16: =F15/100 -> 0.98 | AE16: FR | AF16: =SQRT(1-AD16^2) -> 0.1989974874
C17: Condensateurs : | D17: 12 | E17: Mvar | F17: 28.4 | G17: kV | L17: Inductance-série des condensateurs: | M17: 1.2 | N17: Ω | AC17: Idéséq x | AD17: Idéséq y | AK17: =D17<0 -> FALSE | AM17: =IF(D17=0,TRUE,OR(F17<0.75*D13,F17>1.2*D13)) -> FALSE | AT17: =M17<0 -> FALSE
F18: Angle | Z18: Y condens + is | AA18: =IF(OR(ISBLANK(D17),D17=0),0,-1/(M17-F17^2/D17)) -> 0.01514845486 | AB18: Ω | AC18: =D19*COS(F19/180*PI())*3 -> 91.17351072 | AD18: =D19*SIN(F19/180*PI())*3 -> 14.44046547 | AE18: A
C19: Déséquilibre (I0) : | D19: 30.77 | E19: A | F19: 9 | G19: ° | I19: A | J19: B | K19: C | M19: Moy | N19: ΔV | Z19: Fact correction final | AA19: =I20/AA44*AA20 -> 1.031155218 | AB19: =J20/AB44*AB20 -> 1.00703653 | AC19: =K20/AC44*AC20 -> 1.018565423 | AE19: Écart final initial | AF19: =SQRT((AA44-I20)^2+(AB44-J20)^2+(AC44-K20)^2)/M20 -> 3.304167537e-06 | AK19: =D19<0 -> FALSE | AM19: =ISERR(Angle) -> FALSE
H20: Courant : | I20: =IF(Erreur,"",AC18*2/3+M20) -> 1584.778366 | J20: =IF(Erreur,"",-AC18/3-SQRT(3)/3*AD18+M20) -> 1485.267649 | K20: =IF(Erreur,"",-AC18/3+SQRT(3)/3*AD18+M20) -> 1501.942062 | M20: =AA16/3/AC15 -> 1523.996026 | O20: A | Z20: Fact correction initial | AA20: 1.031156011 | AB20: 1.007038319 | AC20: 1.018562635
H21: Tension : | I21: =IF(Erreur,"",AA44*AF25/$AA$15*120) -> 121.4737682 | J21: =IF(Erreur,"",AB44*AG25/$AA$15*120) -> 124.4744104 | K21: =IF(Erreur,"",AC44*AH25/$AA$15*120) -> 123.0437225 | M21: =(I21+J21+K21)/3 -> 122.9973004 | N21: =IF(Erreur,"",MAX(I21:K21)-MIN(I21:K21)) -> 3.000642169 | O21: V (base 120 V) | Z21: Admittance de charge | AA21: A | AB21: B | AC21: C | AE21: Impédance de charge | AF21: A | AG21: B | AH21: C
AA22: =I20/$AC$15*AA20 -> 0.1107218222 | AB22: =J20/$AC$15*AB20 -> 0.101342364 | AC22: =K20/$AC$15*AC20 -> 0.1036528465 | AD22: S | AF22: =AA23^2+AA24^2 -> 0.01182125475 | AG22: =AB23^2+AB24^2 -> 0.00988875641 | AH22: 0.01034846433
Z23: Gp | AA23: =AA22*$AD$16 -> 0.1085073858 | AB23: 0.09931551672 | AC23: 0.1015797895 | AD23: S | AE23: Rs | AF23: =AA23/AF22 -> 9.179007483 | AG23: =AB23/AG22 -> 10.04327669 | AH23: 9.815928846 | AI23: Ω
Z24: Bp | AA24: =-AA22*$AF$16+$AA$18 -> -0.006884909565 | AB24: =-AB22*$AF$16+$AA$18 -> -0.005018420948 | AC24: =-AC22*$AF$16+$AA$18 -> -0.005478201155 | AD24: S | AE24: Xs | AF24: =-AA24/AF22 -> 0.5824178324 | AG24: =-AB24/AG22 -> 0.5074875687 | AH24: 0.5293733427 | AI24: Ω
AE25: Zs | AF25: =SQRT(AF23^2+AF24^2) -> 9.197466439 | AG25: =SQRT(AG23^2+AG24^2) -> 10.05609021 | AH25: 9.830193042 | AI25: Ω
AA27: Matrice Z
Z28: r | AA28: =Z29+AF23 -> 9.367709559 | AB28: =Z30 -> 0.119174986 | AC28: =Z30 -> 0.119174986 | AD28: =-AA31 -> -4.464383743 | AE28: -1.261907401 | AF28: -1.261907401
Z29: =(V13+2*T13)/3 -> 0.1887020757 | AA29: =Z30 -> 0.119174986 | AB29: =Z29+AG23 -> 10.23197876 | AC29: =Z30 -> 0.119174986 | AD29: -1.261907401 | AE29: -4.38945348 | AF29: -1.261907401
Z30: =(V13-T13)/3 -> 0.119174986 | AA30: =Z30 -> 0.119174986 | AB30: =Z30 -> 0.119174986 | AC30: =Z29+AH23 -> 10.00463092 | AD30: -1.261907401 | AE30: -1.261907401 | AF30: -4.411339254
Z31: i | AA31: =Z32+AF24 -> 4.464383743 | AB31: =Z33 -> 1.261907401 | AC31: =Z33 -> 1.261907401 | AD31: =AA28 -> 9.367709559 | AE31: 0.119174986 | AF31: 0.119174986
Z32: =(W13+2*U13)/3 -> 3.881965911 | AA32: =Z33 -> 1.261907401 | AB32: =Z32+AG24 -> 4.38945348 | AC32: =Z33 -> 1.261907401 | AD32: 0.119174986 | AE32: 10.23197876 | AF32: 0.119174986
Z33: =(W13-U13)/3 -> 1.261907401 | AA33: =Z33 -> 1.261907401 | AB33: =Z33 -> 1.261907401 | AC33: =Z32+AH24 -> 4.411339254 | AD33: 0.119174986 | AE33: 0.119174986 | AF33: 10.00463092
AA35: Matrice Y | AH35: Matrice Vs | AJ35: Matrice Is
AA36: =MINVERSE(AA28:AF33) -> 0.08696308241 | AB36: -0.008688098243 | AC36: -0.008910555417 | AD36: 0.03893606767 | AE36: 0.005382476268 | AF36: 0.005416155533 | AH36: =$AB$15 -> 15604.9235 | AJ36: =MMULT(AA36:AF41,AH36:AH41) -> 1494.820221
AA37: -0.008688098243 | AB37: 0.08238998821 | AC37: -0.008066863716 | AD37: 0.005382476268 | AE37: 0.03315420123 | AF37: 0.005280222757 | AH37: =-$AB$15/2 -> -7802.461751 | AJ37: -1092.176642
AA38: -0.008910555417 | AB38: -0.008066863716 | AC38: 0.0835612745 | AD38: 0.005416155533 | AE38: 0.005280222757 | AF38: 0.03457583407 | AG38: ⨯ | AH38: =AH37 -> -7802.461751 | AI38: = | AJ38: -332.1822749
AA39: -0.03893606767 | AB39: -0.005382476268 | AC39: -0.005416155533 | AD39: 0.08696308241 | AE39: -0.008688098243 | AF39: -0.008910555417 | AH39: 0 | AJ39: -526.34479
AA40: -0.005382476268 | AB40: -0.03315420123 | AC40: -0.005280222757 | AD40: -0.008688098243 | AE40: 0.08238998821 | AF40: -0.008066863716 | AH40: =-SQRT(3)/2*AB15 -> -13514.26018 | AJ40: -1006.567439
AA41: -0.005416155533 | AB41: -0.005280222757 | AC41: -0.03457583407 | AD41: -0.008910555417 | AE41: -0.008066863716 | AF41: 0.0835612745 | AH41: =-AH40 -> 13514.26018 | AJ41: 1464.743166
AA43: A | AB43: B | AC43: C | AD43: N
Z44: I charge calculé | AA44: =SQRT(AJ36^2+AJ39^2) -> 1584.779584 | AB44: =SQRT(AJ37^2+AJ40^2) -> 1485.270287 | AC44: =SQRT(AJ38^2+AJ41^2) -> 1501.93795 | AD44: =SQRT(AA44^2+AB44^2+AC44^2-AA44*AB44-AA44*AC44-AB44*AC44)/3 -> 30.77033892 | AE44: A

Sheet Ex 6-6
B1: Complément au cours "Caractéristiques électriques des postes de distribution HT/MT", module 2
B2: Calcul de l'écart de tension max entre phases MT (3E Ing., J.P. Laflamme, ing. 2015-03-09) | S2: Impédance source MT
D3: R1 | F3: X1 | S3: Z | T3: R1 | U3: X1 | V3: R0 | W3: X0 | AK3: Validation d'erreur
C4: Impédance source HT : | D4: 0.0032 | F4: 0.0112 | G4: p.u. (100 MVA) | L4: Tension source HT : | M4: 315 | N4: kV | S4: HT | T4: =D4*S5 -> 0.02473570733 | U4: =F4*S5 -> 0.08657497566 | X4: Ω | Z4: Validation d'erreur | AA4: =IF(ISERR(AB4),TRUE,OR(AB4,AC4,Erreur2)) -> FALSE | AB4: =OR(AK4:AV19) -> FALSE | AC4: =OR(ISERR(T13),ISERR(V13),ISERR(AB4)) -> FALSE | AD4: FALSE | AK4: =D4<0 -> FALSE | AM4: =F4<0 -> FALSE | AT4: =M4<=0 -> FALSE
B5: Tension nominale des transfos | D5: HT | F5: MT | S5: =M4^2/100*(F6/U6)^2 -> 7.729908541
D6: 285 | F6: 26.4 | G6: kV | L6: Prise de régulation : | M6: 6.36 | T6: =-(M6-9)/8*0.15 -> 0.0495 | U6: =(1+T6)*D6 -> 299.1075 | V6: =(1-0.7717*T6+1.4798*T6^2)*D8 -> 31.37636872 | AK6: =OR(D6<0.8*M4,D6>1.2*M4) -> FALSE | AM6: =OR(F6<0.8*D13,F6>1.3*D13) -> FALSE | AT6: =OR(M6<1,M6>17) -> FALSE
D7: Z | F7: X/R | H7: Puissance | M7: Z | O7: X/R | S7: Transfos | T7: Puissance | V7: MALT | AA7: G1 | AB7: B1 | AD7: G0 | AE7: B0
B8: Impédance transfos de puissance YNd | C8: 1 | D8: 32.5 | E8: % | F8: 70 | H8: 140 | I8: MVA | J8: Impédance transfos de MALT | L8: 1 | M8: 3.82 | N8: Ω | O8: 15 | S8: =IF(ISBLANK(D8),"",$V$6/100*$F$6^2/H8) -> 1.562005282 | T8: =IF(ISBLANK(D8),"",U8/F8) -> 0.02231208454 | U8: =IF(ISBLANK(D8),"",S8*F8/SQRT(1+F8^2)) -> 1.561845918 | V8: =IF(ISBLANK(M8),"",W8/O8) -> 0.2541026202 | W8: =IF(ISBLANK(M8),"",M8*O8/SQRT(1+O8^2)) -> 3.811539303 | X8: Ω | Z8: =T8^2+U8^2 -> 2.4398605 | AA8: =IF(ISBLANK($D8),0,T8/Z8) -> 0.009144819771 | AB8: =IF(ISBLANK($D8),0,-U8/Z8) -> -0.6401373839 | AC8: =V8^2+W8^2 -> 14.5924 | AD8: =IF(ISBLANK($M8),0,V8/AC8) -> 0.01741335354 | AE8: =IF(ISBLANK($M8),0,-W8/AC8) -> -0.2612003031 | AF8: S | AK8: =D8<0 -> FALSE | AM8: =F8<0 -> FALSE | AO8: =H8<0 -> FALSE | AT8: =M8<0 -> FALSE | AV8: =O8<0 -> FALSE
C9: 2 | E9: % | I9: MVA | L9: 2 | N9: Ω | S9: =IF(ISBLANK(D9),"",$V$6/100*$F$6^2/H9) ->  | U9: =IF(ISBLANK(D9),"",S9*F9/SQRT(1+F9^2)) ->  | W9: =IF(ISBLANK(M9),"",M9*O9/SQRT(1+O9^2)) ->  | X9: Ω | Z9: =T9^2+U9^2 ->  | AA9: =IF(ISBLANK($D9),0,T9/Z9) -> 0 | AB9: =IF(ISBLANK($D9),0,-U9/Z9) -> 0 | AC9: =V9^2+W9^2 ->  | AD9: =IF(ISBLANK($M9),0,V9/AC9) -> 0 | AE9: =IF(ISBLANK($M9),0,-W9/AC9) -> 0 | AF9: S | AK9: =D9<0 -> FALSE | AM9: =F9<0 -> FALSE | AO9: =H9<0 -> FALSE | AT9: =M9<0 -> FALSE | AV9: =O9<0 -> FALSE
C10: 3 | E10: % | I10: MVA | L10: 3 | N10: Ω | U10: =IF(ISBLANK(D10),"",S10*F10/SQRT(1+F10^2)) ->  | W10: =IF(ISBLANK(M10),"",M10*O10/SQRT(1+O10^2)) ->  | X10: Ω | Z10: =T10^2+U10^2 ->  | AA10: =IF(ISBLANK($D10),0,T10/Z10) -> 0 | AB10: =IF(ISBLANK($D10),0,-U10/Z10) -> 0 | AC10: =V10^2+W10^2 ->  | AD10: =IF(ISBLANK($M10),0,V10/AC10) -> 0 | AE10: =IF(ISBLANK($M10),0,-W10/AC10) -> 0 | AF10: S | AK10: =D10<0 -> FALSE | AM10: =F10<0 -> FALSE | AO10: =H10<0 -> FALSE | AT10: =M10<0 -> FALSE | AV10: =O10<0 -> FALSE
C11: 4 | E11: % | I11: MVA | L11: 4 | N11: Ω | U11: =IF(ISBLANK(D11),"",S11*F11/SQRT(1+F11^2)) ->  | W11: =IF(ISBLANK(M11),"",M11*O11/SQRT(1+O11^2)) ->  | X11: Ω | Z11: =T11^2+U11^2 ->  | AA11: =IF(ISBLANK($D11),0,T11/Z11) -> 0 | AB11: =IF(ISBLANK($D11),0,-U11/Z11) -> 0 | AC11: =V11^2+W11^2 ->  | AD11: =IF(ISBLANK($M11),0,V11/AC11) -> 0 | AE11: =IF(ISBLANK($M11),0,-W11/AC11) -> 0 | AF11: S | AK11: =D11<0 -> FALSE | AM11: =F11<0 -> FALSE | AO11: =H11<0 -> FALSE | AT11: =M11<0 -> FALSE | AV11: =O11<0 -> FALSE
C13: Tension nom. MT ph-ph : | D13: 24.94 | E13: kV | S13: Z Total : | T13: =AA13/Z13+T4 -> 0.04704779187 | U13: =-AB13/Z13+U4 -> 1.648420894 | V13: =AD13/AC13 -> 0.2541026202 | W13: =-AE13/AC13 -> 3.811539303 | X13: Ω | Z13: =AA13^2+AB13^2 -> 0.409859498 | AA13: =SUM(AA8:AA11) -> 0.009144819771 | AB13: =SUM(AB8:AB11) -> -0.6401373839 | AC13: =AD13^2+AE13^2 -> 0.06852882322 | AD13: =SUM(AD8:AD11) -> 0.01741335354 | AE13: =SUM(AE8:AE11) -> -0.2612003031 | AF13: S | AK13: =D13<=0 -> FALSE
F14: FP | AA14: Nominal | AB14: Source | AC14: Charge
C15: Charge totale : | D15: =140*1.42*0.72 -> 143.136 | E15: MVA | F15: 98 | G15: % | L15: Tension de la charge : | M15: 123 | N15: V en base 120 V | Z15: V ph-n | AA15: =D13/SQRT(3)*1000 -> 14399.11571 | AB15: =AA15*M4*F6/U6/D13 -> 16051.90388 | AC15: =AA15*M15/120 -> 14759.09361 | AD15: V | AK15: =D15<0 -> FALSE | AM15: =IF(D15=0,TRUE,OR(F15<75,F15>100)) -> FALSE | AR15: =OR(M15<90,M15>150) -> FALSE
F16: Vnom | Z16: P: | AA16: =D15*1000000 -> 143136000 | AB16: W | AC16: FP | AD16: =F15/100 -> 0.98 | AE16: FR | AF16: =SQRT(1-AD16^2) -> 0.1989974874
C17: Condensateurs : | D17: 24 | E17: Mvar | F17: 26.8 | G17: kV | L17: Inductance-série des condensateurs: | M17: 1.2 | N17: Ω | AC17: Idéséq x | AD17: Idéséq y | AK17: =D17<0 -> FALSE | AM17: =IF(D17=0,TRUE,OR(F17<0.75*D13,F17>1.2*D13)) -> FALSE | AT17: =M17<0 -> FALSE
F18: Angle | Z18: Y condens + is | AA18: =IF(OR(ISBLANK(D17),D17=0),0,-1/(M17-F17^2/D17)) -> 0.03481086099 | AB18: S | AC18: =D19*COS(F19/180*PI())*3 -> 25.65045325 | AD18: =D19*SIN(F19/180*PI())*3 -> 131.9601423 | AE18: A
C19: Déséquilibre (I0) : | D19: 44.81 | E19: A | F19: 79 | G19: ° | I19: A | J19: B | K19: C | M19: Moy | N19: ΔV | Z19: Fact correction final | AA19: =I20/AA44*AA20 -> 1.019076813 | AB19: =J20/AB44*AB20 -> 1.00750831 | AC19: =K20/AC44*AC20 -> 1.031918627 | AE19: Écart final initial | AF19: =SQRT((AA44-I20)^2+(AB44-J20)^2+(AC44-K20)^2)/M20 -> 6.351231381e-06 | AK19: =D19<0 -> FALSE | AM19: =ISERR(Angle) -> FALSE
H20: Courant : | I20: =IF(Erreur,"",AC18*2/3+M20) -> 3249.819145 | J20: =IF(Erreur,"",-AC18/3-SQRT(3)/3*AD18+M20) -> 3147.981468 | K20: =IF(Erreur,"",-AC18/3+SQRT(3)/3*AD18+M20) -> 3300.355915 | M20: =AA16/3/AC15 -> 3232.718843 | O20: A | Z20: Fact correction initial | AA20: 1.019080789 | AB20: 1.007508772 | AC20: 1.031913599
H21: Tension : | I21: =IF(Erreur,"",AA44*AF25/$AA$15*120) -> 123.0375088 | J21: =IF(Erreur,"",AB44*AG25/$AA$15*120) -> 124.4861383 | K21: =IF(Erreur,"",AC44*AH25/$AA$15*120) -> 121.4815324 | M21: =(I21+J21+K21)/3 -> 123.0017265 | N21: =IF(Erreur,"",MAX(I21:K21)-MIN(I21:K21)) -> 3.004605887 | O21: V (base 120 V) | Z21: Admittance de charge | AA21: A | AB21: B | AC21: C | AE21: Impédance de charge | AF21: A | AG21: B | AH21: C
AA22: =I20/$AC$15*AA20 -> 0.224392388 | AB22: =J20/$AC$15*AB20 -> 0.2148925285 | AC22: =K20/$AC$15*AC20 -> 0.2307514431 | AD22: S | AF22: =AA23^2+AA24^2 -> 0.04845488479 | AG22: =AB23^2+AB24^2 -> 0.04441335604 | AH22: 0.05126106767
Z23: Gp | AA23: =AA22*$AD$16 -> 0.2199045402 | AB23: 0.2105946779 | AC23: 0.2261364143 | AD23: S | AE23: Rs | AF23: =AA23/AF22 -> 4.53833584 | AG23: =AB23/AG22 -> 4.741697018 | AH23: 4.411465164 | AI23: Ω
Z24: Bp | AA24: =-AA22*$AF$16+$AA$18 -> -0.009842660421 | AB24: =-AB22*$AF$16+$AA$18 -> -0.007952212243 | AC24: =-AC22*$AF$16+$AA$18 -> -0.01110809641 | AD24: S | AE24: Xs | AF24: =-AA24/AF22 -> 0.203130406 | AG24: =-AB24/AG22 -> 0.179050019 | AH24: 0.2166965481 | AI24: Ω
AE25: Zs | AF25: =SQRT(AF23^2+AF24^2) -> 4.542879501 | AG25: =SQRT(AG23^2+AG24^2) -> 4.745076345 | AH25: 4.416784157 | AI25: Ω
AA27: Matrice Z
Z28: r | AA28: =Z29+AF23 -> 4.654401908 | AB28: =Z30 -> 0.06901827611 | AC28: =Z30 -> 0.06901827611 | AD28: =-AA31 -> -2.572590769 | AE28: -0.7210394698 | AF28: -0.7210394698
Y29: Ph+ n | Z29: =(V13+2*T13)/3 -> 0.116066068 | AA29: =Z30 -> 0.06901827611 | AB29: =Z29+AG23 -> 4.857763086 | AC29: =Z30 -> 0.06901827611 | AD29: -0.7210394698 | AE29: -2.548510382 | AF29: -0.7210394698
Y30: n | Z30: =(V13-T13)/3 -> 0.06901827611 | AA30: =Z30 -> 0.06901827611 | AB30: =Z30 -> 0.06901827611 | AC30: =Z29+AH23 -> 4.527531232 | AD30: -0.7210394698 | AE30: -0.7210394698 | AF30: -2.586156911
Z31: i | AA31: =Z32+AF24 -> 2.572590769 | AB31: =Z33 -> 0.7210394698 | AC31: =Z33 -> 0.7210394698 | AD31: =AA28 -> 4.654401908 | AE31: 0.06901827611 | AF31: 0.06901827611
Y32: Ph+ n | Z32: =(W13+2*U13)/3 -> 2.369460363 | AA32: =Z33 -> 0.7210394698 | AB32: =Z32+AG24 -> 2.548510382 | AC32: =Z33 -> 0.7210394698 | AD32: 0.06901827611 | AE32: 4.857763086 | AF32: 0.06901827611
Y33: n | Z33: =(W13-U13)/3 -> 0.7210394698 | AA33: =Z33 -> 0.7210394698 | AB33: =Z33 -> 0.7210394698 | AC33: =Z32+AH24 -> 2.586156911 | AD33: 0.06901827611 | AE33: 0.06901827611 | AF33: 4.527531232
AA35: Matrice Y | AH35: Matrice Vs | AJ35: Matrice Is
AA36: =MINVERSE(AA28:AF33) -> 0.1658515307 | AB36: -0.02072529713 | AC36: -0.0222750319 | AD36: 0.08474050684 | AE36: 0.009106820218 | AF36: 0.008958046239 | AH36: =$AB$15 -> 16051.90388 | AJ36: =MMULT(AA36:AF41,AH36:AH41) -> 3005.283243
AA37: -0.02072529713 | AB37: 0.1624545375 | AC37: -0.02132060975 | AD37: 0.009106820218 | AE37: 0.078729014 | AF37: 0.009053864929 | AH37: =-$AB$15/2 -> -8025.951938 | AJ37: -2433.993687
AA38: -0.0222750319 | AB38: -0.02132060975 | AC38: 0.167981203 | AD38: 0.008958046239 | AE38: 0.009053864929 | AF38: 0.08873454407 | AG38: ⨯ | AH38: =AH37 -> -8025.951938 | AI38: = | AJ38: -426.9780133
AA39: -0.08474050684 | AB39: -0.009106820218 | AC39: -0.008958046239 | AD39: 0.1658515307 | AE39: -0.02072529713 | AF39: -0.0222750319 | AH39: 0 | AJ39: -1236.802136
AA40: -0.009106820218 | AB40: -0.078729014 | AC40: -0.009053864929 | AD40: -0.02072529713 | AE40: 0.1624545375 | AF40: -0.02132060975 | AH40: =-SQRT(3)/2*AB15 -> -13901.35654 | AJ40: -1996.36448
AA41: -0.008958046239 | AB41: -0.009053864929 | AC41: -0.08873454407 | AD41: -0.0222750319 | AE41: -0.02132060975 | AF41: 0.167981203 | AH41: =-AH40 -> 13901.35654 | AJ41: 3272.603365
AA43: A | AB43: B | AC43: C | AD43: N (I0)
Z44: I charge calculé | AA44: =SQRT(AJ36^2+AJ39^2) -> 3249.831826 | AB44: =SQRT(AJ37^2+AJ40^2) -> 3147.982911 | AC44: =SQRT(AJ38^2+AJ41^2) -> 3300.339832 | AD44: =SQRT(AA44^2+AB44^2+AC44^2-AA44*AB44-AA44*AC44-AB44*AC44)/3 -> 44.80630623 | AE44: A

Sheet Ex 6-7
B1: Complément au cours "Caractéristiques électriques des postes de distribution HT/MT", module 2
B2: Calcul de l'écart de tension max entre phases MT (3E Ing., J.P. Laflamme, ing. 2015-03-09) | S2: Impédance source MT
D3: R1 | F3: X1 | S3: Z | T3: R1 | U3: X1 | V3: R0 | W3: X0 | AK3: Validation d'erreur
C4: Impédance source HT : | D4: 0.0032 | F4: 0.0112 | G4: p.u. (100 MVA) | L4: Tension source HT : | M4: 315 | N4: kV | S4: HT | T4: =D4*S5 -> 0.0233773092 | U4: =F4*S5 -> 0.0818205822 | X4: Ω | Z4: Validation d'erreur | AA4: =IF(ISERR(AB4),TRUE,OR(AB4,AC4,Erreur2)) -> FALSE | AB4: =OR(AK4:AV19) -> FALSE | AC4: =OR(ISERR(T13),ISERR(V13),ISERR(AB4)) -> FALSE | AD4: FALSE | AK4: =D4<0 -> FALSE | AM4: =F4<0 -> FALSE | AT4: =M4<=0 -> FALSE
B5: Tension nominale des transfos | D5: HT | F5: MT | S5: =M4^2/100*(F6/U6)^2 -> 7.305409125
D6: 310 | F6: 26.4 | G6: kV | L6: Prise de régulation : | M6: 9.4 | T6: =-(M6-9)/8*0.15 -> -0.0075 | U6: =(1+T6)*D6 -> 307.675 | V6: =(1-0.7717*T6+1.4798*T6^2)*D8 -> 24.04031663 | AK6: =OR(D6<0.8*M4,D6>1.2*M4) -> FALSE | AM6: =OR(F6<0.8*D13,F6>1.3*D13) -> FALSE | AT6: =OR(M6<1,M6>17) -> FALSE
D7: Z | F7: X/R | H7: Puissance | M7: Z | O7: X/R | S7: Transfos | T7: Puissance | V7: MALT | AA7: G1 | AB7: B1 | AD7: G0 | AE7: B0
B8: Impédance transfos de puissance YNd | C8: 1 | D8: 23.9 | E8: % | F8: 55 | H8: 66 | I8: MVA | J8: Impédance transfos de MALT | L8: 1 | M8: 7.3 | N8: Ω | O8: 15 | S8: =IF(ISBLANK(D8),"",$V$6/100*$F$6^2/H8) -> 2.538657436 | T8: =IF(ISBLANK(D8),"",S8*1/SQRT(1+F8^2)) -> 0.0461497805 | U8: =IF(ISBLANK(D8),"",S8*F8/SQRT(1+F8^2)) -> 2.538237927 | V8: =IF(ISBLANK(M8),"",M8*1/SQRT(1+O8^2)) -> 0.4855887768 | W8: =IF(ISBLANK(M8),"",M8*O8/SQRT(1+O8^2)) -> 7.283831652 | X8: Ω | Z8: =T8^2+U8^2 -> 6.444781579 | AA8: =IF(ISBLANK($D8),0,T8/Z8) -> 0.007160798227 | AB8: =IF(ISBLANK($D8),0,-U8/Z8) -> -0.3938439025 | AC8: =V8^2+W8^2 -> 53.29 | AD8: =IF(ISBLANK($M8),0,V8/AC8) -> 0.009112193222 | AE8: =IF(ISBLANK($M8),0,-W8/AC8) -> -0.1366828983 | AF8: S | AK8: =D8<0 -> FALSE | AM8: =F8<0 -> FALSE | AO8: =H8<0 -> FALSE | AT8: =M8<0 -> FALSE | AV8: =O8<0 -> FALSE
C9: 2 | E9: % | I9: MVA | L9: 2 | N9: Ω | S9: =IF(ISBLANK(D9),"",$V$6/100*$F$6^2/H9) ->  | T9: =IF(ISBLANK(D9),"",S9*1/SQRT(1+F9^2)) ->  | U9: =IF(ISBLANK(D9),"",S9*F9/SQRT(1+F9^2)) ->  | V9: =IF(ISBLANK(M9),"",M9*1/SQRT(1+O9^2)) ->  | W9: =IF(ISBLANK(M9),"",M9*O9/SQRT(1+O9^2)) ->  | X9: Ω | Z9: =T9^2+U9^2 ->  | AA9: =IF(ISBLANK($D9),0,T9/Z9) -> 0 | AB9: =IF(ISBLANK($D9),0,-U9/Z9) -> 0 | AC9: =V9^2+W9^2 ->  | AD9: =IF(ISBLANK($M9),0,V9/AC9) -> 0 | AE9: =IF(ISBLANK($M9),0,-W9/AC9) -> 0 | AF9: S | AK9: =D9<0 -> FALSE | AM9: =F9<0 -> FALSE | AO9: =H9<0 -> FALSE | AT9: =M9<0 -> FALSE | AV9: =O9<0 -> FALSE
C10: 3 | E10: % | I10: MVA | L10: 3 | N10: Ω | T10: =IF(ISBLANK(D10),"",S10*1/SQRT(1+F10^2)) ->  | U10: =IF(ISBLANK(D10),"",S10*F10/SQRT(1+F10^2)) ->  | V10: =IF(ISBLANK(M10),"",M10*1/SQRT(1+O10^2)) ->  | W10: =IF(ISBLANK(M10),"",M10*O10/SQRT(1+O10^2)) ->  | X10: Ω | Z10: =T10^2+U10^2 ->  | AA10: =IF(ISBLANK($D10),0,T10/Z10) -> 0 | AB10: =IF(ISBLANK($D10),0,-U10/Z10) -> 0 | AC10: =V10^2+W10^2 ->  | AD10: =IF(ISBLANK($M10),0,V10/AC10) -> 0 | AE10: =IF(ISBLANK($M10),0,-W10/AC10) -> 0 | AF10: S | AK10: =D10<0 -> FALSE | AM10: =F10<0 -> FALSE | AO10: =H10<0 -> FALSE | AT10: =M10<0 -> FALSE | AV10: =O10<0 -> FALSE
C11: 4 | E11: % | I11: MVA | L11: 4 | N11: Ω | T11: =IF(ISBLANK(D11),"",S11*1/SQRT(1+F11^2)) ->  | U11: =IF(ISBLANK(D11),"",S11*F11/SQRT(1+F11^2)) ->  | V11: =IF(ISBLANK(M11),"",M11*1/SQRT(1+O11^2)) ->  | W11: =IF(ISBLANK(M11),"",M11*O11/SQRT(1+O11^2)) ->  | X11: Ω | Z11: =T11^2+U11^2 ->  | AA11: =IF(ISBLANK($D11),0,T11/Z11) -> 0 | AB11: =IF(ISBLANK($D11),0,-U11/Z11) -> 0 | AC11: =V11^2+W11^2 ->  | AD11: =IF(ISBLANK($M11),0,V11/AC11) -> 0 | AE11: =IF(ISBLANK($M11),0,-W11/AC11) -> 0 | AF11: S | AK11: =D11<0 -> FALSE | AM11: =F11<0 -> FALSE | AO11: =H11<0 -> FALSE | AT11: =M11<0 -> FALSE | AV11: =O11<0 -> FALSE
C13: Tension nom. MT ph-ph : | D13: 24.94 | E13: kV | S13: Z Total : | T13: =AA13/Z13+T4 -> 0.0695270897 | U13: =-AB13/Z13+U4 -> 2.62005851 | V13: =AD13/AC13 -> 0.4855887768 | W13: =-AE13/AC13 -> 7.283831652 | X13: Ω | Z13: =AA13^2+AB13^2 -> 0.1551642965 | AA13: =SUM(AA8:AA11) -> 0.007160798227 | AB13: =SUM(AB8:AB11) -> -0.3938439025 | AC13: =AD13^2+AE13^2 -> 0.01876524676 | AD13: =SUM(AD8:AD11) -> 0.009112193222 | AE13: =SUM(AE8:AE11) -> -0.1366828983 | AF13: S | AK13: =D13<=0 -> FALSE
F14: FP | AA14: Nominal | AB14: Source | AC14: Charge
C15: Charge totale : | D15: =66*1.42*0.72 -> 67.4784 | E15: MVA | F15: 98 | G15: % | L15: Tension de la charge : | M15: 123 | N15: V en base 120 V | Z15: V ph-n | AA15: =D13/SQRT(3)*1000 -> 14399.11571 | AB15: =AA15*M4*F6/U6/D13 -> 15604.9235 | AC15: =AA15*M15/120 -> 14759.09361 | AD15: V | AK15: =D15<0 -> FALSE | AM15: =IF(D15=0,TRUE,OR(F15<75,F15>100)) -> FALSE | AR15: =OR(M15<90,M15>150) -> FALSE
F16: Vnom | Z16: P: | AA16: =D15*1000000 -> 67478400 | AB16: W | AC16: FP | AD16: =F15/100 -> 0.98 | AE16: FR | AF16: =SQRT(1-AD16^2) -> 0.1989974874
C17: Condensateurs : | D17: 12 | E17: Mvar | F17: 28.4 | G17: kV | L17: Inductance-série des condensateurs: | M17: 1.2 | N17: Ω | AC17: Idéséq x | AD17: Idéséq y | AK17: =D17<0 -> FALSE | AM17: =IF(D17=0,TRUE,OR(F17<0.75*D13,F17>1.2*D13)) -> FALSE | AT17: =M17<0 -> FALSE
F18: Angle | Z18: Y condens + is | AA18: =IF(OR(ISBLANK(D17),D17=0),0,-1/(M17-F17^2/D17)) -> 0.01514845486 | AB18: Ω | AC18: =D19*COS(F19/180*PI())*3 -> 79.76571039 | AD18: =D19*SIN(F19/180*PI())*3 -> 12.6336474 | AE18: A
C19: Déséquilibre (I0) : | D19: 26.92 | E19: A | F19: 9 | G19: ° | I19: A | J19: B | K19: C | M19: Moy | N19: ΔV | Z19: Fact correction final | AA19: =I20/AA44*AA20 -> 1.031212387 | AB19: =J20/AB44*AB20 -> 1.006991988 | AC19: =K20/AC44*AC20 -> 1.018527015 | AE19: Écart final initial | AF19: =SQRT((AA44-I20)^2+(AB44-J20)^2+(AC44-K20)^2)/M20 -> 5.853299143e-06 | AK19: =D19<0 -> FALSE | AM19: =ISERR(Angle) -> FALSE
H20: Courant : | I20: =IF(Erreur,"",AC18*2/3+M20) -> 1577.173166 | J20: =IF(Erreur,"",-AC18/3-SQRT(3)/3*AD18+M20) -> 1490.113416 | K20: =IF(Erreur,"",-AC18/3+SQRT(3)/3*AD18+M20) -> 1504.701495 | M20: =AA16/3/AC15 -> 1523.996026 | O20: A | Z20: Fact correction initial | AA20: 1.031213571 | AB20: 1.006995383 | AC20: 1.018522178
H21: Tension : | I21: =IF(Erreur,"",AA44*AF25/$AA$15*120) -> 121.472115 | J21: =IF(Erreur,"",AB44*AG25/$AA$15*120) -> 124.4768302 | K21: =IF(Erreur,"",AC44*AH25/$AA$15*120) -> 123.0465876 | M21: =(I21+J21+K21)/3 -> 122.9985109 | N21: =IF(Erreur,"",MAX(I21:K21)-MIN(I21:K21)) -> 3.004715212 | O21: V (base 120 V) | Z21: Admittance de charge | AA21: A | AB21: B | AC21: C | AE21: Impédance de charge | AF21: A | AG21: B | AH21: C
AA22: =I20/$AC$15*AA20 -> 0.1101966297 | AB22: =J20/$AC$15*AB20 -> 0.1016686641 | AC22: =K20/$AC$15*AC20 -> 0.1038391575 | AD22: S | AF22: =AA23^2+AA24^2 -> 0.01170839642 | AG22: =AB23^2+AB24^2 -> 0.009953031659 | AH22: 0.0103859991
Z23: Gp | AA23: =AA22*$AD$16 -> 0.1079926971 | AB23: 0.0996352908 | AC23: 0.1017623743 | AD23: S | AE23: Rs | AF23: =AA23/AF22 -> 9.223525857 | AG23: =AB23/AG22 -> 10.01054696 | AH23: 9.798034192 | AI23: Ω
Z24: Bp | AA24: =-AA22*$AF$16+$AA$18 -> -0.006780397571 | AB24: =-AB22*$AF$16+$AA$18 -> -0.005083353844 | AC24: =-AC22*$AF$16+$AA$18 -> -0.005515276572 | AD24: S | AE24: Xs | AF24: =-AA24/AF22 -> 0.5791055693 | AG24: =-AB24/AG22 -> 0.5107342183 | AH24: 0.531029949 | AI24: Ω
AE25: Zs | AF25: =SQRT(AF23^2+AF24^2) -> 9.241687752 | AG25: =SQRT(AG23^2+AG24^2) -> 10.02356722 | AH25: 9.812413915 | AI25: Ω
AA27: Matrice Z
Z28: r | AA28: =Z29+AF23 -> 9.431740176 | AB28: =Z30 -> 0.138687229 | AC28: =Z30 -> 0.138687229 | AD28: =-AA31 -> -4.753755126 | AE28: -1.554591048 | AF28: -1.554591048
Z29: =(V13+2*T13)/3 -> 0.2082143187 | AA29: =Z30 -> 0.138687229 | AB29: =Z29+AG23 -> 10.21876128 | AC29: =Z30 -> 0.138687229 | AD29: -1.554591048 | AE29: -4.685383776 | AF29: -1.554591048
Z30: =(V13-T13)/3 -> 0.138687229 | AA30: =Z30 -> 0.138687229 | AB30: =Z30 -> 0.138687229 | AC30: =Z29+AH23 -> 10.00624851 | AD30: -1.554591048 | AE30: -1.554591048 | AF30: -4.705679506
Z31: i | AA31: =Z32+AF24 -> 4.753755126 | AB31: =Z33 -> 1.554591048 | AC31: =Z33 -> 1.554591048 | AD31: =AA28 -> 9.431740176 | AE31: 0.138687229 | AF31: 0.138687229
Z32: =(W13+2*U13)/3 -> 4.174649557 | AA32: =Z33 -> 1.554591048 | AB32: =Z32+AG24 -> 4.685383776 | AC32: =Z33 -> 1.554591048 | AD32: 0.138687229 | AE32: 10.21876128 | AF32: 0.138687229
Z33: =(W13-U13)/3 -> 1.554591048 | AA33: =Z33 -> 1.554591048 | AB33: =Z33 -> 1.554591048 | AC33: =Z32+AH24 -> 4.705679506 | AD33: 0.138687229 | AE33: 0.138687229 | AF33: 10.00624851
AA35: Matrice Y | AH35: Matrice Vs | AJ35: Matrice Is
AA36: =MINVERSE(AA28:AF33) -> 0.08473808146 | AB36: -0.01050583349 | AC36: -0.01075215368 | AD36: 0.03903375118 | AE36: 0.005829332484 | AF36: 0.005854607959 | AH36: =$AB$15 -> 15604.9235 | AJ36: =MMULT(AA36:AF41,AH36:AH41) -> 1488.53749
AA37: -0.01050583349 | AB37: 0.08086454344 | AC37: -0.009841475523 | AD37: 0.005829332484 | AE37: 0.03382438497 | AF37: 0.005753277732 | AH37: =-$AB$15/2 -> -7802.461751 | AJ37: -1097.457745
AA38: -0.01075215368 | AB38: -0.009841475523 | AC38: 0.08188937707 | AD38: 0.005854607959 | AE38: 0.005753277732 | AF38: 0.03515009906 | AG38: ⨯ | AH38: =AH37 -> -7802.461751 | AI38: = | AJ38: -332.6612399
AA39: -0.03903375118 | AB39: -0.005829332484 | AC39: -0.005854607959 | AD39: 0.08473808146 | AE39: -0.01050583349 | AF39: -0.01075215368 | AH39: 0 | AJ39: -521.2840379
AA40: -0.005829332484 | AB40: -0.03382438497 | AC40: -0.005753277732 | AD40: -0.01050583349 | AE40: 0.08086454344 | AF40: -0.009841475523 | AH40: =-SQRT(3)/2*AB15 -> -13514.26018 | AJ40: -1007.987828
AA41: -0.005854607959 | AB41: -0.005753277732 | AC41: -0.03515009906 | AD41: -0.01075215368 | AE41: -0.009841475523 | AF41: 0.08188937707 | AH41: =-AH40 -> 13514.26018 | AJ41: 1467.460932
AA43: A | AB43: B | AC43: C | AD43: N
Z44: I charge calculé | AA44: =SQRT(AJ36^2+AJ39^2) -> 1577.174977 | AB44: =SQRT(AJ37^2+AJ40^2) -> 1490.11844 | AC44: =SQRT(AJ38^2+AJ41^2) -> 1504.69435 | AD44: =SQRT(AA44^2+AB44^2+AC44^2-AA44*AB44-AA44*AC44-AB44*AC44)/3 -> 26.92039607 | AE44: A
